fUST/lending_fUST_20250918
["ID","MTS","AMOUNT","RATE_DAILY","PERIOD"]
[386006687,1758183041409,-481.65322293,0.00023261,3]
[386006688,1758183041419,-480.0,0.00023261,3]
[386006689,1758183041428,-291.02955837,0.00023261,3]
[386006690,1758183041438,-480.0,0.00023261,3]
[386006691,1758183041447,-480.0,0.00023261,3]
[386006692,1758183041456,-502.29592045,0.00023261,3]
[386006693,1758183041466,-481.65763881,0.00023261,3]
[386006694,1758183041475,-480.0,0.00023261,3]
[386006695,1758183041485,-482.56951878,0.00023261,3]
[386006696,1758183041494,-481.20761135,0.00023261,3]
[386006697,1758183041504,-480.0,0.00023261,3]
[386006698,1758183041513,-489.29010601,0.00023261,3]
[386006699,1758183041523,-480.0,0.00023261,3]
[386006700,1758183041533,-480.0,0.00023261,3]
[386006701,1758183041542,-480.0,0.00023261,3]
[386006702,1758183041551,-480.0,0.00023261,3]
[386006703,1758183041561,-480.0,0.00023261,3]
[386006704,1758183041571,-158.40613644,0.00023261,3]
[386006705,1758183041581,-480.0,0.00023261,3]
[386006706,1758183041590,-480.0,0.00023261,3]
[386006707,1758183041600,-480.0,0.00023261,3]
[386006708,1758183041610,-480.0,0.00023261,3]
[386006709,1758183041619,-480.0,0.00023261,3]
[386006710,1758183041628,-480.0,0.00023261,3]
[386006711,1758183041638,-480.0,0.00023261,3]
[386006712,1758183041647,-480.0,0.00023261,3]
[386006713,1758183041657,-480.0,0.00023261,3]
[386006714,1758183041666,-480.0,0.00023261,3]
[386006715,1758183041676,-480.0,0.00023261,3]
[386006716,1758183041685,-485.79311304,0.00023261,3]
[386006717,1758183041695,-480.0,0.00023261,3]
[386006718,1758183041704,-485.69151998,0.00023261,3]
[386006719,1758183041714,-480.0,0.00023261,3]
[386006720,1758183041723,-480.0,0.00023261,3]
[386006721,1758183041733,-480.0,0.00023261,3]
[386006722,1758183041742,-485.39569299,0.00023261,3]
[386006723,1758183041751,-480.0,0.00023261,3]
[386006724,1758183041761,-480.0,0.00023261,3]
[386006725,1758183041771,-480.0,0.00023261,3]
[386006726,1758183041780,-480.0,0.00023261,3]
[386006727,1758183041791,-480.0,0.00023261,3]
[386006728,1758183041801,-486.00650065,0.00023261,3]
[386006729,1758183041811,-485.54083943,0.00023261,3]
[386006730,1758183041821,-480.0,0.00023261,3]
[386006731,1758183041830,-503.30145604,0.00023261,3]
[386006732,1758183041840,-486.58613886,0.00023261,3]
[386006733,1758183041850,-491.6204047,0.00023261,3]
[386006734,1758183041859,-480.0,0.00023261,3]
[386006735,1758183041868,-480.0,0.00023261,3]
[386006736,1758183041879,-480.0,0.00023261,3]
[386006737,1758183041888,-480.0,0.00023261,3]
[386006738,1758183041897,-480.0,0.00023261,3]
[386006739,1758183041907,-480.0,0.00023261,3]
[386006740,1758183041916,-480.0,0.00023261,3]
[386006741,1758183041926,-480.0,0.00023261,3]
[386006742,1758183041935,-480.0,0.00023261,3]
[386006743,1758183041945,-481.93488696,0.00023261,3]
[386006744,1758183041954,-480.0,0.00023261,3]
[386006745,1758183041964,-480.0,0.00023261,3]
[386006746,1758183041973,-480.0,0.00023261,3]
[386006747,1758183041983,-480.0,0.00023261,3]
[386006748,1758183041992,-480.0,0.00023261,3]
[386006749,1758183042002,-480.0,0.00023261,3]
[386006750,1758183042012,-482.93349257,0.00023261,3]
[386006751,1758183042021,-480.0,0.00023261,3]
[386006752,1758183042031,-480.0,0.00023261,3]
[386006753,1758183042042,-480.0,0.00023261,3]
[386006754,1758183042052,-480.0,0.00023261,3]
[386006755,1758183042061,-480.0,0.00023261,3]
[386006756,1758183042070,-480.0,0.00023261,3]
[386006757,1758183042080,-480.0,0.00023261,3]
[386006758,1758183042090,-480.0,0.00023261,3]
[386006759,1758183042099,-480.0,0.00023261,3]
[386006760,1758183042109,-480.0,0.00023261,3]
[386006761,1758183042119,-552.19,0.00023261,3]
[386006762,1758183042128,-480.0,0.00023261,3]
[386006763,1758183042138,-480.0,0.00023261,3]
[386006764,1758183042148,-480.0,0.00023261,3]
[386006765,1758183042157,-483.27,0.00023261,3]
[386006766,1758183042167,-480.0,0.00023261,3]
[386006767,1758183042176,-480.0,0.00023261,3]
[386006768,1758183042186,-480.0,0.00023261,3]
[386006769,1758183042195,-480.0,0.00023261,3]
[386006770,1758183042205,-480.0,0.00023261,3]
[386006771,1758183042215,-484.27882036,0.00023261,3]
[386006772,1758183042224,-480.0,0.00023261,3]
[386006773,1758183042233,-482.02930181,0.00023261,3]
[386006774,1758183042243,-480.0,0.00023261,3]
[386006775,1758183042252,-483.74065757,0.00023261,3]
[386006776,1758183042262,-488.46207944,0.00023261,3]
[386006777,1758183042272,-480.0,0.00023261,3]
[386006778,1758183042282,-480.0,0.00023261,3]
[386006779,1758183042292,-1014.31,0.00023261,3]
[386006780,1758183042302,-486.97946458,0.00023261,3]
[386006781,1758183042312,-491.73527628,0.00023261,3]
[386006782,1758183042321,-484.34659243,0.00023261,3]
[386006783,1758183042331,-480.0,0.00023261,3]
[386006784,1758183042341,-480.0,0.00023261,3]
[386006785,1758183042353,-485.63829599,0.00023261,3]
[386006786,1758183042363,-349.45317395,0.00023261,3]
[386006787,1758183042372,-480.0,0.00023261,3]
[386006788,1758183042382,-480.0,0.00023261,3]
[386006789,1758183042393,-480.0,0.00023261,3]
[386006790,1758183042403,-482.75843102,0.00023261,3]
[386006791,1758183042412,-480.0,0.00023261,3]
[386006792,1758183042422,-483.0992426,0.00023261,3]
[386006793,1758183042434,-480.0,0.00023261,3]
[386006794,1758183042444,-480.0,0.00023261,3]
[386006795,1758183042454,-481.8937676,0.00023261,3]
[386006796,1758183042464,-480.0,0.00023261,3]
[386006797,1758183042473,-480.0,0.00023261,3]
[386006798,1758183042482,-480.0,0.00023261,3]
[386006799,1758183042491,-158.09839897,0.00023261,3]
[386006800,1758183042501,-151.0,0.00023261,3]
[386006801,1758183042510,-481.50747007,0.00023261,3]
[386006802,1758183042520,-151.0,0.00023261,3]
[386006803,1758183042529,-157.0,0.00023261,3]
[386006804,1758183042539,-482.74022993,0.00023261,3]
[386006805,1758183042549,-487.37284984,0.00023261,3]
[386006806,1758183042559,-480.0,0.00023261,3]
[386006807,1758183042568,-480.0,0.00023261,3]
[386006808,1758183042578,-484.91503361,0.00023261,3]
[386006809,1758183042587,-479.82741246,0.00023261,3]
[386006810,1758183042597,-484.12401454,0.00023261,3]
[386006811,1758183042606,-455.68442522,0.00023261,3]
[386006812,1758183042615,-480.0,0.00023261,3]
[386006813,1758183042625,-480.0,0.00023261,3]
[386006814,1758183042635,-480.0,0.00023261,3]
[386006815,1758183042644,-480.0,0.00023261,3]
[386006816,1758183042654,-1321.6,0.00023261,3]
[386006817,1758183042663,-480.0,0.00023261,3]
[386006818,1758183042673,-480.0,0.00023261,3]
[386006819,1758183042683,-480.0,0.00023261,3]
[386006820,1758183042693,-480.0,0.00023261,3]
[386006821,1758183042702,-480.0,0.00023261,3]
[386006822,1758183042712,-485.7182503,0.00023261,3]
[386006823,1758183042722,-480.0,0.00023261,3]
[386006824,1758183042731,-480.0,0.00023261,3]
[386006825,1758183042741,-465.33851528,0.00023261,3]
[386006826,1758183042751,-157.78778016,0.00023261,3]
[386006827,1758183042761,-151.0,0.00023261,3]
[386006828,1758183042771,-486.01988842,0.00023261,3]
[386006829,1758183042780,-151.0,0.00023261,3]
[386006830,1758183042790,-487.10765605,0.00023261,3]
[386006831,1758183042800,-164.26819515,0.00023261,3]
[386006832,1758183042810,-481.38581957,0.00023261,3]
[386006833,1758183042819,-480.0,0.00023261,3]
[386006834,1758183042829,-480.0,0.00023261,3]
[386006835,1758183042839,-500.0,0.00023261,3]
[386006836,1758183042849,-481.23547581,0.00023261,3]
[386006837,1758183042858,-218.64,0.00023261,3]
[386006838,1758183042868,-480.0,0.00023261,3]
[386006839,1758183042881,-481.31106467,0.00023261,3]
[386006840,1758183042891,-314.31610826,0.00023261,3]
[386006841,1758183042900,-485.9959105,0.00023261,3]
[386006842,1758183042910,-481.36680308,0.00023261,3]
[386006843,1758183042919,-480.72472454,0.00023261,3]
[386006844,1758183042928,-485.96826907,0.00023261,3]
[386006845,1758183042938,-480.0,0.00023261,3]
[386006846,1758183042948,-480.39868545,0.00023261,3]
[386006847,1758183042957,-487.55287523,0.00023261,3]
[386006848,1758183042967,-481.50203511,0.00023261,3]
[386006849,1758183042976,-480.0,0.00023261,3]
[386006850,1758183042987,-483.11570259,0.00023261,3]
[386006851,1758183042996,-480.0,0.00023261,3]
[386006852,1758183043006,-191.50694464,0.00023261,3]
[386006853,1758183043015,-482.5332284,0.00023261,3]
[386006854,1758183043024,-482.34338249,0.00023261,3]
[386006855,1758183043034,-612.90328136,0.00023261,3]
[386006856,1758183043044,-482.32625835,0.00023261,3]
[386006857,1758183043054,-480.54110269,0.00023261,3]
[386006858,1758183043064,-480.0,0.00023261,3]
[386006859,1758183043074,-474.70870759,0.00023261,3]
[386006861,1758183043084,-582.47135348,0.00023261,3]
[386006862,1758183043093,-481.40984418,0.00023261,3]
[386006863,1758183043102,-480.0,0.00023261,3]
[386006864,1758183043112,-480.0,0.00023261,3]
[386006865,1758183043121,-480.0,0.00023261,3]
[386006870,1758183043209,-480.0,0.00023261,3]
[386006872,1758183043219,-482.73247292,0.00023261,3]
[386006874,1758183043229,-480.64165249,0.00023261,3]
[386006876,1758183043239,-480.0,0.00023261,3]
[386006878,1758183043248,-480.0,0.00023261,3]
[386006880,1758183043257,-487.58340558,0.00023261,3]
[386006882,1758183043267,-480.0,0.00023261,3]
[386006884,1758183043277,-480.0,0.00023261,3]
[386006886,1758183043287,-482.32009231,0.00023261,3]
[386006888,1758183043296,-483.1818611,0.00023261,3]
[386006890,1758183043305,-480.0,0.00023261,3]
[386006892,1758183043315,-480.0,0.00023261,3]
[386006894,1758183043324,-480.94215143,0.00023261,3]
[386006896,1758183043333,-481.37270874,0.00023261,3]
[386006898,1758183043342,-480.0,0.00023261,3]
[386006899,1758183043353,-482.44981994,0.00023261,3]
[386006901,1758183043363,-480.0,0.00023261,3]
[386006904,1758183043372,-480.0,0.00023261,3]
[386006905,1758183043382,-481.90175458,0.00023261,3]
[386006907,1758183043392,-482.83880384,0.00023261,3]
[386006909,1758183043401,-482.02317966,0.00023261,3]
[386006912,1758183043411,-480.0,0.00023261,3]
[386006913,1758183043420,-629.48448446,0.00023261,3]
[386006915,1758183043429,-482.76983589,0.00023261,3]
[386006917,1758183043439,-480.93567568,0.00023261,3]
[386006919,1758183043448,-483.10880868,0.00023261,3]
[386006921,1758183043458,-480.0,0.00023261,3]
[386006923,1758183043467,-482.67772874,0.00023261,3]
[386006925,1758183043476,-482.7890979,0.00023261,3]
[386006927,1758183043486,-483.73901325,0.00023261,3]
[386006929,1758183043495,-480.0,0.00023261,3]
[386006931,1758183043504,-483.17534161,0.00023261,3]
[386006933,1758183043514,-480.0,0.00023261,3]
[386006934,1758183043523,-480.0,0.00023261,3]
[386006935,1758183043532,-481.56284484,0.00023261,3]
[386006936,1758183043541,-481.07790569,0.00023261,3]
[386006937,1758183043551,-386.66878514,0.00023261,3]
[386006940,1758183043592,-93.33121486,0.00023261,3]
[386006943,1758183043601,-480.0,0.00023261,3]
[386006946,1758183043610,-482.57382396,0.00023261,3]
[386006948,1758183043619,-489.76900798,0.00023261,3]
[386006950,1758183043628,-39.82051157,0.00023261,3]
[386007858,1758183069627,-480.0,0.00023259,3]
[386007859,1758183069654,-468.58941196,0.00023259,3]
[386007861,1758183120192,2273.5150915,0.00022263,2]
[386007862,1758183150893,151.6386697,0.00022218,2]
[386008161,1758183289315,-426.65032032,0.00023162,2]
[386008162,1758183289340,-150.91135403,0.00023162,2]
[386008163,1758183289364,-300.0,0.00023258,2]
[386008164,1758183289389,-71.02773761,0.00023259,3]
[386008166,1758183291807,-408.97226239,0.00023259,3]
[386008167,1758183291835,-489.66,0.00023259,3]
[386008168,1758183291860,-49.95714957,0.00023259,3]
[386008169,1758183293846,-430.04285043,0.00023259,3]
[386008170,1758183293872,-480.0,0.00023259,3]
[386008171,1758183293897,-38.54656153,0.00023259,3]
[386008245,1758183445395,216.697727,0.00022263,2]
[386008250,1758183709610,209.1803064,0.00022207,2]
[386008254,1758183828314,815.2914561,0.00030338,120]
[386008255,1758183869604,1796.54435886,0.00022186,2]
[386008256,1758183869631,2303.79855054,0.00022186,2]
[386008266,1758184007727,-150.91135403,0.00023062,2]
[386008267,1758184007750,-299.72185611,0.00023147,2]
[386008297,1758184093552,418.59706662,0.00010618,2]
[386008299,1758184102603,1002.9600336,0.00015,2]
[386008301,1758184118012,182.081638,0.0002216,2]
[386008302,1758184119199,585.60376841,0.000149,2]
[386008303,1758184124513,506.95894283,0.00013,2]
[386008304,1758184124539,2849.71976697,0.00013,2]
[386008305,1758184127916,259.76765159,0.00015,2]
[386008355,1758184232862,-150.91135403,0.00023062,2]
[386008357,1758184232872,-300.0,0.00023147,2]
[386008359,1758184232881,-1200.0,0.00023147,2]
[386008361,1758184232891,-151.0,0.00023148,2]
[386008363,1758184232900,-250.0,0.00023148,2]
[386008365,1758184232909,-152.97986127,0.00023148,2]
[386008367,1758184232918,-264.12510147,0.00023148,2]
[386008369,1758184232927,-151.0,0.00023148,2]
[386008372,1758184232937,-151.0,0.00023148,2]
[386008374,1758184232946,-500.0,0.00023148,2]
[386008376,1758184232955,-151.0,0.00023148,2]
[386008378,1758184232964,-500.0,0.00023148,2]
[386008379,1758184232974,-151.0,0.00023148,2]
[386008380,1758184232983,-500.0,0.00023148,2]
[386008381,1758184232992,-151.0,0.00023148,2]
[386008382,1758184233001,-500.0,0.00023148,2]
[386008383,1758184233010,-153.11569432,0.00023148,2]
[386008384,1758184233019,-500.0,0.00023148,2]
[386008385,1758184233028,-500.0,0.00023148,2]
[386008386,1758184233037,-500.0,0.00023148,2]
[386008387,1758184233046,-500.0,0.00023148,2]
[386008388,1758184233054,-500.0,0.00023148,2]
[386008390,1758184233064,-500.0,0.00023148,2]
[386008391,1758184233073,-500.0,0.00023148,2]
[386008393,1758184233083,-500.0,0.00023148,2]
[386008395,1758184233093,-7649.72255888,0.00023159,2]
[386008397,1758184233103,-480.0,0.00023159,3]
[386008398,1758184233112,-484.33089845,0.00023159,3]
[386008400,1758184233122,-480.0,0.0002316,3]
[386008402,1758184233131,-480.0,0.0002316,3]
[386008403,1758184233140,-374.65949957,0.0002316,3]
[386008404,1758184233150,-480.0,0.0002316,3]
[386008406,1758184233160,-500.0,0.0002316,2]
[386008408,1758184233171,-500.0,0.0002316,2]
[386008410,1758184233181,-160.43052283,0.0002316,2]
[386008411,1758184233191,-500.0,0.0002316,2]
[386008413,1758184233201,-500.0,0.0002316,2]
[386008414,1758184233211,-500.0,0.0002316,2]
[386008416,1758184233220,-500.0,0.0002316,2]
[386008418,1758184233230,-500.0,0.0002316,2]
[386008420,1758184233240,-246.75646952,0.0002316,2]
[386008421,1758184233249,-480.0,0.0002316,3]
[386008423,1758184233259,-480.0,0.0002316,3]
[386008424,1758184233269,-480.0,0.0002316,3]
[386008425,1758184233279,-480.0,0.0002316,3]
[386008426,1758184233289,-559.41,0.0002316,3]
[386008427,1758184233299,-480.0,0.0002316,3]
[386008428,1758184233308,-480.0,0.0002316,3]
[386008429,1758184233318,-480.0,0.0002316,3]
[386008430,1758184233328,-500.0,0.0002316,2]
[386008431,1758184233337,-480.0,0.0002316,3]
[386008432,1758184233348,-480.0,0.0002316,3]
[386008433,1758184233357,-189.17346822,0.00023161,2]
[386008434,1758184233367,-487.56525955,0.00023161,3]
[386008435,1758184233474,-487.62492314,0.00023161,3]
[386008436,1758184233488,-480.0,0.00023161,3]
[386008437,1758184233498,-623.61894073,0.00023161,3]
[386008438,1758184233508,-480.0,0.00023161,3]
[386008439,1758184233518,-480.0,0.00023161,3]
[386008440,1758184233528,-503.3975351,0.00023161,3]
[386008441,1758184233537,-487.9722024,0.00023161,3]
[386008442,1758184233548,-486.67771979,0.00023161,3]
[386008443,1758184233557,-480.0,0.00023161,3]
[386008444,1758184233567,-480.0,0.00023161,3]
[386008445,1758184233577,-480.0,0.00023161,3]
[386008446,1758184233587,-480.0,0.00023161,3]
[386008447,1758184233596,-480.0,0.00023161,3]
[386008448,1758184233606,-480.0,0.00023161,3]
[386008449,1758184233616,-480.0,0.00023161,3]
[386008450,1758184233626,-480.0,0.00023161,3]
[386008451,1758184233635,-567.19672732,0.00023161,3]
[386008452,1758184233645,-609.65,0.00023161,3]
[386008453,1758184233655,-480.0,0.00023161,3]
[386008454,1758184233664,-538.4674504,0.00023161,3]
[386008455,1758184233673,-490.24431776,0.00023161,3]
[386008456,1758184233683,-480.0,0.00023161,3]
[386008457,1758184233692,-480.0,0.00023161,3]
[386008458,1758184233702,-480.0,0.00023161,3]
[386008459,1758184233711,-480.0,0.00023161,3]
[386008460,1758184233721,-480.0,0.00023161,3]
[386008461,1758184233731,-486.17063493,0.00023161,3]
[386008462,1758184233740,-483.76583403,0.00023161,3]
[386008463,1758184233749,-480.0,0.00023161,3]
[386008464,1758184233758,-491.31434465,0.00023161,3]
[386008465,1758184233768,-480.0,0.00023161,3]
[386008466,1758184233778,-480.0,0.00023161,3]
[386008467,1758184233787,-480.0,0.00023161,3]
[386008468,1758184233796,-997.13,0.00023161,3]
[386008469,1758184233806,-480.0,0.00023161,3]
[386008470,1758184233815,-480.0,0.00023161,3]
[386008471,1758184233824,-484.87691161,0.00023161,3]
[386008472,1758184233834,-480.0,0.00023161,3]
[386008473,1758184233843,-493.28,0.00023161,3]
[386008474,1758184233855,-480.0,0.00023161,3]
[386008475,1758184233866,-480.0,0.00023161,3]
[386008476,1758184233875,-480.0,0.00023161,3]
[386008477,1758184233884,-480.0,0.00023161,3]
[386008478,1758184233894,-492.84987269,0.00023161,3]
[386008479,1758184233904,-492.79523334,0.00023161,3]
[386008480,1758184233913,-507.87514399,0.00023161,3]
[386008481,1758184233923,-480.0,0.00023161,3]
[386008482,1758184233932,-483.82684074,0.00023161,3]
[386008483,1758184233942,-480.0,0.00023161,3]
[386008484,1758184233951,-483.87846231,0.00023161,3]
[386008485,1758184233961,-480.0,0.00023161,3]
[386008486,1758184233970,-480.0,0.00023161,3]
[386008487,1758184233979,-480.0,0.00023161,3]
[386008488,1758184233989,-480.0,0.00023161,3]
[386008489,1758184233998,-480.0,0.00023161,3]
[386008490,1758184234008,-480.0,0.00023161,3]
[386008491,1758184234018,-493.99,0.00023161,3]
[386008492,1758184234027,-360.0,0.00023161,3]
[386008493,1758184234037,-480.0,0.00023161,3]
[386008494,1758184234046,-1297.88,0.00023161,3]
[386008495,1758184234056,-480.0,0.00023161,3]
[386008496,1758184234066,-480.0,0.00023161,3]
[386008497,1758184234075,-570.32,0.00023161,3]
[386008498,1758184234084,-480.0,0.00023161,3]
[386008499,1758184234094,-480.0,0.00023161,3]
[386008500,1758184234103,-480.0,0.00023161,3]
[386008501,1758184234112,-480.0,0.00023161,3]
[386008502,1758184234122,-480.0,0.00023161,3]
[386008503,1758184234132,-480.0,0.00023161,3]
[386008504,1758184234141,-480.0,0.00023161,3]
[386008505,1758184234151,-1218.4,0.00023161,3]
[386008506,1758184234160,-488.8860698,0.00023161,3]
[386008507,1758184234169,-480.0,0.00023161,3]
[386008508,1758184234180,-480.0,0.00023161,3]
[386008509,1758184234189,-498.18270194,0.00023161,3]
[386008510,1758184234199,-480.0,0.00023161,3]
[386008511,1758184234209,-489.70740089,0.00023161,3]
[386008512,1758184234218,-549.18,0.00023161,3]
[386008513,1758184234228,-480.0,0.00023161,3]
[386008514,1758184234237,-494.9283334,0.00023161,3]
[386008515,1758184234246,-1129.21324207,0.00023162,2]
[386008516,1758184234256,-90681.36287193,0.00023162,2]
[386008559,1758184238684,-480.0,0.0002316,3]
[386008561,1758184238694,-481.7599996,0.00023161,3]
[386009011,1758184243851,-1.61991046,0.00023161,3]
[386009013,1758184243863,-485.73439465,0.00023161,3]
[386009015,1758184243873,-115.47215449,0.00023161,3]
[386009017,1758184243884,-364.52784551,0.00023161,3]
[386009019,1758184243893,-483.66096068,0.00023162,2]
[386009027,1758184243964,-1748.48034298,0.00023162,2]
[386013887,1758184529615,216.6977279,0.0002216,2]
[386013889,1758184754117,-194.36118283,0.00023048,2]
[386013890,1758184754145,-373.31903028,0.00023059,2]
[386013891,1758184754172,-300.0,0.0002306,2]
[386013892,1758184754202,-500.0,0.00023061,2]
[386013893,1758184754233,-500.0,0.00023061,2]
[386013894,1758184754264,-194.08405217,0.00023061,2]
[386013895,1758184754295,-500.0,0.00023061,2]
[386013896,1758184754323,-433.72643439,0.00023061,2]
[386013897,1758184754354,-157.90688247,0.00023061,2]
[386013898,1758184754382,-564.60662103,0.00023062,2]
[386013899,1758184755456,-2815.28687148,0.00023062,2]
[386013900,1758184764023,-10000.01,0.00023062,2]
[386013901,1758184764154,-10000.01,0.00023062,2]
[386013902,1758184764283,-10000.01,0.00023062,2]
[386013903,1758184764426,-10000.01,0.00023062,2]
[386013904,1758184764560,-10000.01,0.00023062,2]
[386013905,1758184764679,-10000.01,0.00023062,2]
[386013906,1758184764803,-10000.01,0.00023062,2]
[386013907,1758184764961,-10000.01,0.00023062,2]
[386013908,1758184765076,-10000.01,0.00023062,2]
[386013909,1758184765249,-10000.01,0.00023062,2]
[386013910,1758184768819,-10000.01,0.00023062,2]
[386013911,1758184768930,-10000.01,0.00023062,2]
[386013912,1758184769037,-10000.01,0.00023062,2]
[386013913,1758184769172,-10000.01,0.00023062,2]
[386013914,1758184769295,-10000.01,0.00023062,2]
[386013915,1758184769395,-10000.01,0.00023062,2]
[386013916,1758184769580,-10000.01,0.00023062,2]
[386013917,1758184769696,-10000.01,0.00023062,2]
[386013918,1758184769801,-2019.27980418,0.00023062,2]
[386013919,1758184769825,-5961.45039164,0.00023062,2]
[386013920,1758184769911,-10000.01,0.00023148,2]
[386013921,1758184779062,-499.30410616,0.00023148,2]
[386013922,1758184779085,-9001.40178768,0.00023148,2]
[386013923,1758184779208,-500.0,0.00023148,2]
[386013924,1758184779236,-500.0,0.00023148,2]
[386013925,1758184779265,-405.047334,0.00023148,2]
[386013926,1758184779293,-300.0,0.00023157,2]
[386013927,1758184779321,-300.0,0.00023158,2]
[386013928,1758184779348,-300.0,0.00023158,2]
[386013929,1758184779376,-300.0,0.00023158,2]
[386013930,1758184779403,-300.0,0.00023158,2]
[386013931,1758184779432,-1200.0,0.00023158,2]
[386013932,1758184779467,-429.4108252,0.00023158,3]
[386013933,1758184779504,-451.0936816,0.00023158,3]
[386013934,1758184779614,-28.9063184,0.00023158,3]
[386013935,1758184779642,-480.0,0.00023158,3]
[386013936,1758184779672,-480.0,0.00023158,3]
[386013937,1758184779700,-476.47,0.00023158,3]
[386013938,1758184779729,-480.0,0.00023158,3]
[386013939,1758184779759,-480.0,0.00023158,3]
[386013940,1758184779787,-466.49,0.00023158,3]
[386013941,1758184779815,-480.0,0.00023158,3]
[386013942,1758184779842,-480.0,0.00023158,3]
[386013943,1758184779871,-480.0,0.00023158,3]
[386013944,1758184779898,-488.02234291,0.00023159,3]
[386013945,1758184780016,-480.0,0.00023159,3]
[386013946,1758184780044,-388.18846946,0.00023159,3]
[386013947,1758184780072,-480.0,0.00023159,3]
[386013948,1758184780203,-484.9881757,0.00023159,3]
[386013949,1758184780232,-489.30282823,0.00023159,3]
[386013950,1758184780260,-548.46721678,0.00023159,3]
[386013951,1758184780288,-495.21779081,0.00023159,3]
[386013952,1758184780316,-480.50717502,0.00023159,3]
[386013953,1758184780343,-483.7697317,0.00023159,3]
[386013954,1758184780371,-484.50824546,0.00023159,3]
[386013955,1758184780431,-493.58926868,0.00023159,3]
[386013956,1758184780459,-480.0,0.00023159,3]
[386013957,1758184780487,-481.61208462,0.00023159,3]
[386013958,1758184780514,-482.30784955,0.00023159,3]
[386013959,1758184780541,-481.670347,0.00023159,3]
[386013960,1758184780568,-486.42936095,0.00023159,3]
[386013961,1758184780596,-480.0,0.00023159,3]
[386013962,1758184780623,-496.313391,0.00023159,3]
[386013963,1758184780650,-485.14363975,0.00023159,3]
[386013964,1758184780678,-485.18112761,0.00023159,3]
[386013965,1758184780812,-482.26531916,0.00023159,3]
[386013966,1758184780842,-486.16756521,0.00023159,3]
[386013967,1758184780871,-555.93854321,0.00023159,3]
[386013968,1758184780900,-480.0,0.00023159,3]
[386013969,1758184780928,-485.52529247,0.00023159,3]
[386013970,1758184780955,-483.71160833,0.00023159,3]
[386013971,1758184780984,-485.86016087,0.00023159,3]
[386013972,1758184781014,-490.75168178,0.00023159,3]
[386013973,1758184781043,-553.34585413,0.00023159,3]
[386013974,1758184781072,-484.8211432,0.00023159,3]
[386013975,1758184781247,-480.0,0.00023159,3]
[386013976,1758184781276,-474.81601504,0.00023159,3]
[386013977,1758184781308,-484.52382614,0.00023159,3]
[386013978,1758184781337,-480.0,0.00023159,3]
[386013979,1758184781367,-323.59,0.00023159,3]
[386013980,1758184781396,-486.95382895,0.00023159,3]
[386013981,1758184781425,-485.63290712,0.00023159,3]
[386013982,1758184781454,-485.76081227,0.00023159,3]
[386013983,1758184781483,-482.9164811,0.00023159,3]
[386013984,1758184781511,-484.50527879,0.00023159,3]
[386013985,1758184781539,-177.66764944,0.00023159,3]
[386013986,1758184782638,-307.2764023,0.00023159,3]
[386013987,1758184782649,-175.6400788,0.00023159,3]
[386013988,1758184782665,-308.58124413,0.00023159,3]
[386013989,1758184782675,-175.92403466,0.00023159,3]
[386013990,1758184782688,-307.50312612,0.00023159,3]
[386013991,1758184782698,-177.44092562,0.00023159,3]
[386013992,1758184783711,500.0,0.000222,2]
[386013994,1758184789079,-480.0,0.00023061,3]
[386013995,1758184789107,-480.0,0.00023158,3]
[386013996,1758184789138,-447.68427806,0.00023159,3]